fUST/lending_fUST_20250701
["ID","MTS","AMOUNT","RATE_DAILY","PERIOD"]
[368773991,1751358639416,-460.0,0.0001821,2]
[368773993,1751358639426,-460.0,0.00018211,2]
[368773995,1751358639435,-460.0,0.00018211,2]
[368773997,1751358639444,-460.0,0.00018211,2]
[368773999,1751358639453,-460.0,0.00018211,2]
[368774001,1751358639462,-461.06835683,0.00018211,2]
[368774003,1751358639471,-460.0,0.00018211,2]
[368774004,1751358639481,-519.50631206,0.00018211,2]
[368774007,1751358639491,-460.0,0.00018211,2]
[368774009,1751358639501,-1095.47,0.00018384,2]
[368774011,1751358639510,-793.57,0.00018384,2]
[368774013,1751358639520,-834.4,0.00018384,2]
[368774015,1751358639529,-971.83,0.00018384,2]
[368774016,1751358639538,-966.84,0.00018384,2]
[368774017,1751358639547,-675.82,0.00018384,2]
[368774019,1751358639556,-460.0,0.00018384,2]
[368774021,1751358639566,-460.0,0.00018384,2]
[368774023,1751358639576,-460.0,0.00018384,2]
[368774025,1751358639585,-460.0,0.00018384,2]
[368774026,1751358639595,-460.0,0.00018384,2]
[368774027,1751358639605,-460.0,0.00018384,2]
[368774028,1751358639615,-460.0,0.00018384,2]
[368774029,1751358639624,-1048.64,0.00018384,2]
[368774030,1751358639634,-692.04,0.00018384,2]
[368774031,1751358639643,-460.0,0.00018384,2]
[368774033,1751358639653,-460.0,0.00018384,2]
[368774035,1751358639662,-460.0,0.00018384,2]
[368774037,1751358639672,-460.0,0.00018384,2]
[368774039,1751358639681,-564.36425876,0.00018385,2]
[368774041,1751358639691,-460.0,0.00018385,2]
[368774043,1751358639700,-460.0,0.00018385,2]
[368774044,1751358639709,-465.22672507,0.00018385,2]
[368774046,1751358639719,-307.24218419,0.00018385,2]
[368774049,1751358639728,-460.0,0.00018385,2]
[368774051,1751358639738,-460.0,0.00018385,2]
[368774053,1751358639748,-460.0,0.00018385,2]
[368774055,1751358639758,-460.0,0.00018385,2]
[368774058,1751358639769,-460.0,0.00018385,2]
[368774059,1751358639779,-460.0,0.00018385,2]
[368774062,1751358639789,-460.0,0.00018385,2]
[368774064,1751358639798,-460.0,0.00018385,2]
[368774066,1751358639807,-460.0,0.00018385,2]
[368774068,1751358639817,-460.0,0.00018385,2]
[368774070,1751358639826,-460.0,0.00018385,2]
[368774072,1751358639836,-460.0,0.00018385,2]
[368774074,1751358639848,-460.0,0.00018385,2]
[368774076,1751358639858,-460.0,0.00018385,2]
[368774077,1751358639866,-460.0,0.00018385,2]
[368774079,1751358639876,-460.0,0.00018385,2]
[368774081,1751358639885,-460.0,0.00018385,2]
[368774083,1751358639894,-1744.48,0.00018385,2]
[368774085,1751358639903,-460.0,0.00018385,2]
[368774087,1751358639913,-188.10710508,0.00018385,2]
[368774089,1751358639922,-460.0,0.00018385,2]
[368774091,1751358639931,-460.0,0.00018385,2]
[368774093,1751358639940,-414.91,0.00018385,2]
[368774095,1751358639950,-460.0,0.00018385,2]
[368774097,1751358639959,-460.0,0.00018385,2]
[368774099,1751358639968,-471.28,0.00018385,2]
[368774100,1751358639977,-460.0,0.00018385,2]
[368774101,1751358639987,-460.0,0.00018385,2]
[368774103,1751358639996,-502.53,0.00018385,2]
[368774105,1751358640006,-460.0,0.00018484,2]
[368774106,1751358640016,-460.0,0.00018484,2]
[368774108,1751358640025,-460.0,0.00018484,2]
[368774109,1751358640035,-444.53,0.00018484,2]
[368774111,1751358640044,-460.0,0.00018484,2]
[368774113,1751358640053,-460.0,0.00018484,2]
[368774114,1751358640063,-460.0,0.00018484,2]
[368774116,1751358640072,-460.0,0.00018484,2]
[368774117,1751358640081,-710.13,0.00018484,2]
[368774119,1751358640091,-480.22,0.00018484,2]
[368774120,1751358640100,-461.93,0.00018484,2]
[368774122,1751358640110,-460.0,0.00018484,2]
[368774124,1751358640119,-460.0,0.00018484,2]
[368774125,1751358640129,-2176.73,0.00018484,2]
[368774127,1751358640138,-460.0,0.00018484,2]
[368774129,1751358640147,-460.0,0.00018484,2]
[368774130,1751358640157,-577.25731775,0.00018485,2]
[368774132,1751358640166,-296.91,0.00018485,2]
[368774133,1751358640176,-460.0,0.00018485,2]
[368774135,1751358640185,-460.0,0.00018485,2]
[368774137,1751358640195,-281.41771558,0.00018627,2]
[368774138,1751358640204,-1095.47,0.00018658,2]
[368774140,1751358640214,-793.57,0.00018658,2]
[368774142,1751358640224,-834.4,0.00018658,2]
[368774144,1751358640233,-971.83,0.00018658,2]
[368774145,1751358640243,-966.84,0.00018658,2]
[368774147,1751358640253,-675.82,0.00018658,2]
[368774148,1751358640262,-460.0,0.00018658,2]
[368774150,1751358640272,-460.0,0.00018658,2]
[368774152,1751358640281,-460.0,0.00018658,2]
[368774154,1751358640290,-460.0,0.00018658,2]
[368774155,1751358640300,-460.0,0.00018658,2]
[368774157,1751358640309,-460.0,0.00018658,2]
[368774159,1751358640318,-1048.64,0.00018658,2]
[368774161,1751358640329,-692.04,0.00018658,2]
[368774162,1751358640339,-460.0,0.00018658,2]
[368774164,1751358640348,-460.0,0.00018658,2]
[368774166,1751358640358,-460.0,0.00018658,2]
[368774167,1751358640367,-460.0,0.00018659,2]
[368774169,1751358640377,-460.0,0.00018659,2]
[368774171,1751358640386,-460.0,0.00018659,2]
[368774173,1751358640395,-460.0,0.00018659,2]
[368774174,1751358640405,-460.0,0.00018659,2]
[368774176,1751358640415,-460.0,0.00018659,2]
[368774177,1751358640424,-460.0,0.00018659,2]
[368774178,1751358640433,-460.0,0.00018659,2]
[368774179,1751358640443,-460.0,0.00018659,2]
[368774180,1751358640453,-460.0,0.00018659,2]
[368774181,1751358640462,-460.0,0.00018659,2]
[368774183,1751358640472,-460.0,0.00018659,2]
[368774185,1751358640482,-460.0,0.00018659,2]
[368774187,1751358640492,-460.0,0.00018659,2]
[368774189,1751358640501,-441.31,0.00018659,2]
[368774191,1751358640512,-460.0,0.00018659,2]
[368774193,1751358640522,-1744.48,0.00018659,2]
[368774195,1751358640531,-460.0,0.00018659,2]
[368774197,1751358640541,-460.0,0.00018659,2]
[368774199,1751358640550,-460.0,0.00018659,2]
[368774201,1751358640560,-460.0,0.00018659,2]
[368774203,1751358640570,-471.28,0.00018659,2]
[368774205,1751358640580,-460.0,0.00018659,2]
[368774207,1751358640590,-460.0,0.00018659,2]
[368774209,1751358640599,-502.53,0.00018659,2]
[368774210,1751358640608,-235.23589871,0.0001872,2]
[368774211,1751358640618,-460.0,0.00018758,2]
[368774212,1751358640628,-460.0,0.00018758,2]
[368774213,1751358640637,-460.0,0.00018758,2]
[368774214,1751358640646,-460.0,0.00018758,2]
[368774215,1751358640656,-460.0,0.00018758,2]
[368774216,1751358640667,-460.0,0.00018758,2]
[368774217,1751358640676,-710.13,0.00018758,2]
[368774218,1751358640686,-480.22,0.00018758,2]
[368774219,1751358640695,-460.0,0.00018758,2]
[368774220,1751358640705,-460.0,0.00018758,2]
[368774221,1751358640714,-2176.73,0.00018758,2]
[368774222,1751358640724,-460.0,0.00018758,2]
[368774223,1751358640733,-460.0,0.00018759,2]
[368774224,1751358640742,-460.0,0.00018759,2]
[368774225,1751358640753,-500.0,0.000188,2]
[368774226,1751358640763,-1095.47,0.00018932,2]
[368774227,1751358640772,-793.57,0.00018932,2]
[368774228,1751358640781,-834.4,0.00018932,2]
[368774229,1751358640791,-971.83,0.00018932,2]
[368774230,1751358640800,-966.84,0.00018932,2]
[368774231,1751358640809,-675.82,0.00018932,2]
[368774232,1751358640819,-460.0,0.00018932,2]
[368774233,1751358640828,-460.0,0.00018932,2]
[368774234,1751358640837,-460.0,0.00018932,2]
[368774235,1751358640851,-460.0,0.00018932,2]
[368774236,1751358640860,-537.29,0.00018932,2]
[368774237,1751358640869,-460.0,0.00018932,2]
[368774238,1751358640878,-1048.64,0.00018932,2]
[368774239,1751358640890,-692.04,0.00018932,2]
[368774240,1751358640899,-460.0,0.00018932,2]
[368774241,1751358640908,-460.0,0.00018932,2]
[368774242,1751358640919,-460.0,0.00018932,2]
[368774243,1751358640928,-460.0,0.00018933,2]
[368774244,1751358640938,-460.0,0.00018933,2]
[368774245,1751358640948,-602.87697311,0.00018933,2]
[368774246,1751358640957,-151.0,0.00018933,2]
[368774247,1751358640966,-460.0,0.00018933,2]
[368774248,1751358640976,-460.0,0.00018933,2]
[368774249,1751358640985,-460.0,0.00018933,2]
[368774250,1751358640994,-460.0,0.00018933,2]
[368774251,1751358641005,-249.26,0.00018933,2]
[368774252,1751358641014,-460.0,0.00018933,2]
[368774253,1751358641024,-460.0,0.00018933,2]
[368774254,1751358641033,-460.0,0.00018933,2]
[368774255,1751358641043,-1744.48,0.00018933,2]
[368774256,1751358641052,-460.0,0.00018933,2]
[368774257,1751358641061,-460.0,0.00018933,2]
[368774258,1751358641070,-460.0,0.00018933,2]
[368774259,1751358641079,-460.0,0.00018933,2]
[368774260,1751358641088,-471.28,0.00018933,2]
[368774261,1751358641097,-460.0,0.00018933,2]
[368774262,1751358641106,-460.0,0.00018933,2]
[368774263,1751358641116,-502.53,0.00018933,2]
[368774264,1751358641125,-9088.43575008,0.00019,2]
[368774265,1751358641134,-460.0,0.00019032,2]
[368774266,1751358641144,-460.0,0.00019032,2]
[368774267,1751358641153,-460.0,0.00019032,2]
[368774268,1751358641163,-460.0,0.00019032,2]
[368774269,1751358641172,-460.0,0.00019032,2]
[368774270,1751358641181,-460.0,0.00019032,2]
[368774271,1751358641191,-710.13,0.00019032,2]
[368774272,1751358641210,-480.22,0.00019032,2]
[368774273,1751358641221,-460.0,0.00019032,2]
[368774274,1751358641232,-460.0,0.00019032,2]
[368774275,1751358641243,-2176.73,0.00019032,2]
[368774276,1751358641253,-460.0,0.00019032,2]
[368774277,1751358641263,-460.0,0.00019033,2]
[368774278,1751358641274,-468.45,0.00019033,2]
[368774279,1751358641284,-847.53272281,0.00019059,2]
[368774280,1751358641294,-160.0,0.00019059,2]
[368774281,1751358641304,-230.32585361,0.00019059,2]
[368774282,1751358641315,-12571.40790328,0.00019059,2]
[368774283,1751358641325,-213.87551669,0.00019059,2]
[368774284,1751358641335,-160.0,0.00019059,2]
[368774285,1751358641346,-837.20943635,0.00019059,2]
[368774286,1751358641356,-215.01728679,0.00019059,2]
[368774287,1751358641366,-160.0,0.00019059,2]
[368774288,1751358641376,-160.0,0.00019059,2]
[368774289,1751358641386,-160.0,0.00019059,2]
[368774290,1751358641396,-160.0,0.00019059,2]
[368774291,1751358641406,-160.0,0.00019059,2]
[368774292,1751358641415,-160.0,0.00019059,2]
[368774293,1751358641425,-160.0,0.00019071,2]
[368774294,1751358641435,-211.500041,0.00019178,2]
[368774295,1751358641446,-999.04523017,0.0001918,2]
[368774296,1751358641457,-215.7231602,0.00019201,2]
[368774297,1751358641467,-1095.47,0.00019206,2]
[368774298,1751358641477,-793.57,0.00019206,2]
[368774299,1751358641486,-834.4,0.00019206,2]
[368774300,1751358641495,-971.83,0.00019206,2]
[368774301,1751358641505,-966.84,0.00019206,2]
[368774302,1751358641515,-675.82,0.00019206,2]
[368774303,1751358641525,-460.0,0.00019206,2]
[368774304,1751358641534,-460.0,0.00019206,2]
[368774305,1751358641545,-460.0,0.00019206,2]
[368774306,1751358641555,-460.0,0.00019206,2]
[368774307,1751358641564,-460.0,0.00019206,2]
[368774308,1751358641574,-1048.64,0.00019206,2]
[368774309,1751358641584,-692.04,0.00019206,2]
[368774310,1751358641594,-460.0,0.00019206,2]
[368774311,1751358641603,-460.0,0.00019206,2]
[368774312,1751358641613,-460.0,0.00019206,2]
[368774313,1751358641622,-460.0,0.00019207,2]
[368774314,1751358641632,-460.0,0.00019207,2]
[368774315,1751358641642,-244.94,0.00019207,2]
[368774316,1751358641652,-460.0,0.00019207,2]
[368774317,1751358641661,-460.0,0.00019207,2]
[368774318,1751358641670,-460.0,0.00019207,2]
[368774319,1751358641680,-460.0,0.00019207,2]
[368774320,1751358641690,-460.0,0.00019207,2]
[368774321,1751358641700,-1744.48,0.00019207,2]
[368774322,1751358641710,-460.0,0.00019207,2]
[368774323,1751358641720,-460.0,0.00019207,2]
[368774324,1751358641729,-460.0,0.00019207,2]
[368774325,1751358641739,-460.0,0.00019207,2]
[368774326,1751358641749,-471.28,0.00019207,2]
[368774327,1751358641760,-460.0,0.00019207,2]
[368774328,1751358641770,-460.0,0.00019207,2]
[368774329,1751358641780,-502.53,0.00019207,2]
[368774330,1751358641923,-460.0,0.00019306,2]
[368774331,1751358641933,-460.0,0.00019306,2]
[368774332,1751358641943,-443.76,0.00019306,2]
[368774333,1751358641953,-460.0,0.00019306,2]
[368774334,1751358641962,-460.0,0.00019306,2]
[368774335,1751358641971,-460.0,0.00019306,2]
[368774336,1751358641981,-710.13,0.00019306,2]
[368774337,1751358641990,-480.22,0.00019306,2]
[368774338,1751358642000,-460.0,0.00019306,2]
[368774339,1751358642010,-460.0,0.00019306,2]
[368774340,1751358642020,-2176.73,0.00019306,2]
[368774341,1751358642029,-460.0,0.00019306,2]
[368774342,1751358642038,-460.0,0.00019307,2]
[368774343,1751358642048,-84249.84594083,0.00019329,2]
[368774344,1751358642058,-1244.34,0.00019472,3]
[368774345,1751358642068,-1866.52,0.00019472,3]
[368774346,1751358642078,-933.26,0.00019472,3]
[368774347,1751358642087,-466.64,0.00019472,3]
[368774348,1751358642097,-976.58,0.00019472,3]
[368774349,1751358642108,-488.28,0.00019472,3]
[368774350,1751358642123,-1095.47,0.0001948,2]
[368774351,1751358642133,-793.57,0.0001948,2]
[368774352,1751358642142,-834.4,0.0001948,2]
[368774353,1751358642151,-971.83,0.0001948,2]
[368774354,1751358642161,-966.84,0.0001948,2]
[368774355,1751358642170,-675.82,0.0001948,2]
[368774356,1751358642181,-302.28,0.0001948,2]
[368774357,1751358642190,-310.18,0.0001948,2]
[368774358,1751358642200,-157.59,0.0001948,2]
[368774359,1751358642209,-460.0,0.0001948,2]
[368774360,1751358642219,-460.0,0.0001948,2]
[368774361,1751358642233,-1048.64,0.0001948,2]
[368774362,1751358642243,-692.04,0.0001948,2]
[368774363,1751358642255,-460.0,0.0001948,2]
[368774364,1751358642265,-460.0,0.0001948,2]
[368774365,1751358642275,-460.0,0.00019481,2]
[368774366,1751358642286,-460.0,0.00019481,2]
[368774367,1751358642296,-460.0,0.00019481,2]
[368774368,1751358642306,-460.0,0.00019481,2]
[368774369,1751358642316,-460.0,0.00019481,2]
[368774370,1751358642326,-460.0,0.00019481,2]
[368774371,1751358642336,-460.0,0.00019481,2]
[368774372,1751358642345,-1744.48,0.00019481,2]
[368774373,1751358642355,-460.0,0.00019481,2]
[368774374,1751358642366,-460.0,0.00019481,2]
[368774375,1751358642376,-460.0,0.00019481,2]
[368774376,1751358642385,-471.28,0.00019481,2]
[368774377,1751358642394,-460.0,0.00019481,2]
[368774378,1751358642404,-545.39,0.00019481,2]
[368774379,1751358642414,-502.53,0.00019481,2]
[368774380,1751358642424,-460.0,0.0001958,2]
[368774381,1751358642434,-321.01,0.0001958,2]
[368774382,1751358642443,-460.0,0.0001958,2]
[368774383,1751358642453,-460.0,0.0001958,2]
[368774385,1751358642463,-460.0,0.0001958,2]
[368774387,1751358642473,-710.13,0.0001958,2]
[368774389,1751358642483,-480.22,0.0001958,2]
[368774391,1751358642492,-460.0,0.0001958,2]
[368774393,1751358642503,-460.0,0.0001958,2]
[368774394,1751358642512,-2176.73,0.0001958,2]
[368774395,1751358642522,-460.0,0.0001958,2]
[368774396,1751358642532,-215.94,0.00019581,2]
[368774398,1751358642542,-1682.0,0.00019742,2]
[368774399,1751358642552,-420.0,0.00019748,2]
[368774400,1751358642561,-1095.47,0.00019754,2]
[368774401,1751358642570,-793.57,0.00019754,2]
[368774402,1751358642580,-834.4,0.00019754,2]
[368774403,1751358642589,-971.83,0.00019754,2]
[368774404,1751358642599,-966.84,0.00019754,2]
[368774405,1751358642610,-675.82,0.00019754,2]
[368774406,1751358642620,-460.0,0.00019754,2]
[368774407,1751358642629,-460.0,0.00019754,2]
[368774408,1751358642639,-1048.64,0.00019754,2]
[368774409,1751358642649,-692.04,0.00019754,2]
[368774410,1751358642659,-460.0,0.00019754,2]
[368774411,1751358642668,-460.0,0.00019754,2]
[368774412,1751358642677,-460.0,0.00019755,2]
[368774413,1751358642687,-150.26,0.00019755,2]
[368774414,1751358642697,-460.0,0.00019755,2]
[368774415,1751358642706,-460.0,0.00019755,2]
[368774416,1751358642716,-460.0,0.00019755,2]
[368774417,1751358642726,-460.0,0.00019755,2]
[368774418,1751358642736,-1744.48,0.00019755,2]
[368774419,1751358642746,-460.0,0.00019755,2]
[368774420,1751358642757,-460.0,0.00019755,2]
[368774421,1751358642767,-460.0,0.00019755,2]
[368774422,1751358642777,-471.28,0.00019755,2]
[368774423,1751358642786,-502.53,0.00019755,2]
[368774424,1751358642796,-758.0,0.00019757,2]
[368774425,1751358642806,-460.0,0.00019854,2]
[368774426,1751358642815,-460.0,0.00019854,2]
[368774427,1751358642825,-460.0,0.00019854,2]
[368774428,1751358642835,-460.0,0.00019854,2]
[368774429,1751358642847,-710.13,0.00019854,2]
[368774430,1751358642857,-480.22,0.00019854,2]
[368774431,1751358642866,-460.0,0.00019854,2]
[368774432,1751358642876,-460.0,0.00019854,2]
[368774433,1751358642887,-2176.73,0.00019854,2]
[368774434,1751358642896,-460.0,0.00019854,2]
[368774435,1751358642906,-168.0,0.00019874,2]
[368774436,1751358642916,-570.42696276,0.000199,2]
[368774437,1751358642925,-151.26659168,0.00019917,2]
[368774438,1751358642935,-152.11756079,0.00019917,2]
[368774439,1751358642945,-208.01104724,0.00019917,2]
[368774440,1751358642955,-500.0,0.00019917,2]
[368774441,1751358642965,-151.0,0.00019917,2]
[368774442,1751358642974,-151.0,0.00019917,2]
[368774443,1751358642985,-151.0,0.00019917,2]
[368774444,1751358642994,-151.0,0.00019917,2]
[368774445,1751358643004,-500.0,0.00019944,2]
[368774446,1751358643013,-151.0,0.00019944,2]
[368774447,1751358643022,-151.0,0.00019944,2]
[368774448,1751358643032,-151.0,0.00019944,2]
[368774449,1751358643041,-396.0,0.00019972,2]
[368774450,1751358643051,-151.0,0.00019972,2]
[368774451,1751358643060,-296.39966653,0.00019972,2]
[368774452,1751358643072,-151.0,0.00019972,2]
[368774453,1751358643083,-151.0,0.00019999,2]
[368774454,1751358643092,-151.0,0.00019999,2]
[368774455,1751358643101,-1000.0,0.0002,2]
[368774456,1751358643111,-1000.0,0.0002,2]
[368774457,1751358643122,-1000.0,0.0002,2]
[368774458,1751358643132,-11199.80403469,0.0002,2]
[368774459,1751358643142,-13646.57363882,0.0002,2]
[368774460,1751358643151,-1187.63158602,0.0002,2]
[368774461,1751358643160,-361.64427373,0.0002,2]
[368774462,1751358643171,-40000.0,0.0002,2]
[368774463,1751358643181,-2875.54065777,0.0002,2]
[368774464,1751358643192,-252.11453212,0.0002,30]
[368774465,1751358643202,-549.31594541,0.0002,2]
[368774466,1751358643212,-40929.84782435,0.0002,2]
[368774467,1751358643222,-294.44264362,0.00020027,2]
[368774468,1751358643231,-292.0,0.00020027,2]
[368774469,1751358643242,-1095.47,0.00020028,2]
[368774470,1751358643252,-793.57,0.00020028,2]
[368774471,1751358643262,-834.4,0.00020028,2]
[368774472,1751358643272,-971.83,0.00020028,2]
[368774473,1751358643281,-966.84,0.00020028,2]
[368774474,1751358643291,-675.82,0.00020028,2]
[368774475,1751358643301,-460.0,0.00020028,2]
[368774476,1751358643313,-416.89672243,0.00020028,2]
[368774477,1751358643323,-1048.64,0.00020028,2]
[368774478,1751358643334,-692.04,0.00020028,2]
[368774479,1751358643343,-460.0,0.00020028,2]
[368774480,1751358643353,-572.80262594,0.00020028,2]
[368774481,1751358643363,-460.0,0.00020029,2]
[368774482,1751358643372,-460.0,0.00020029,2]
[368774483,1751358643382,-460.0,0.00020029,2]
[368774484,1751358643392,-489.47,0.00020029,2]
[368774485,1751358643402,-460.0,0.00020029,2]
[368774486,1751358643411,-1744.48,0.00020029,2]
[368774487,1751358643421,-460.0,0.00020029,2]
[368774488,1751358643430,-555.83,0.00020029,2]
[368774489,1751358643440,-460.0,0.00020029,2]
[368774490,1751358643450,-471.28,0.00020029,2]
[368774491,1751358643460,-502.53,0.00020029,2]
[368774492,1751358643470,-154.72880771,0.00020081,2]
[368774493,1751358643480,-151.0,0.00020081,2]
[368774494,1751358643489,-151.0,0.00020081,2]
[368774495,1751358643499,-151.0,0.00020081,2]
[368774496,1751358643509,-151.0,0.00020081,2]
[368774497,1751358643519,-151.0,0.00020081,2]
[368774498,1751358643528,-500.0,0.00020081,2]
[368774499,1751358643539,-500.0,0.00020081,2]
[368774500,1751358643548,-151.0,0.00020081,2]
[368774501,1751358643559,-151.0,0.00020081,2]
[368774502,1751358643568,-570.42696254,0.00020107,2]
[368774503,1751358643578,-151.0,0.00020108,2]
[368774504,1751358643588,-151.0,0.00020108,2]
[368774505,1751358643598,-151.45632971,0.00020108,2]
[368774506,1751358643608,-531.49582104,0.00020108,2]
[368774507,1751358643618,-500.0,0.00020108,2]
[368774508,1751358643628,-151.0,0.00020108,2]
[368774509,1751358643638,-521.86328661,0.00020128,2]
[368774510,1751358643649,-460.0,0.00020128,2]
[368774511,1751358643659,-460.0,0.00020128,2]
[368774512,1751358643668,-710.13,0.00020128,2]
[368774513,1751358643678,-480.22,0.00020128,2]
[368774514,1751358643687,-375.17,0.00020128,2]
[368774515,1751358643697,-460.0,0.00020128,2]
[368774516,1751358643706,-2176.73,0.00020128,2]
[368774517,1751358643716,-460.0,0.00020128,2]
[368774518,1751358643726,-292.8455064,0.00020136,2]
[368774519,1751358643735,-198.0,0.00020136,2]
[368774520,1751358643745,-500.0,0.00020136,2]
[368774521,1751358643755,-295.51676164,0.00020136,2]
[368774522,1751358643765,-500.0,0.00020163,2]
[368774523,1751358643776,-490.507449,0.00020187,2]
[368774524,1751358643785,-500.0,0.00020191,2]
[368774525,1751358643795,-151.0,0.000202,3]
[368774526,1751358643804,-500.0,0.00020218,2]
[368774527,1751358643813,-500.0,0.00020245,2]
[368774528,1751358643823,-999.04523017,0.0002025,2]
[368774529,1751358643833,-500.0,0.00020273,2]
[368774530,1751358643846,-500.0,0.000203,2]
[368774531,1751358643856,-1095.47,0.00020302,2]
[368774532,1751358643865,-793.57,0.00020302,2]
[368774533,1751358643874,-834.4,0.00020302,2]
[368774534,1751358643884,-971.83,0.00020302,2]
[368774535,1751358643894,-966.84,0.00020302,2]
[368774536,1751358643904,-675.82,0.00020302,2]
[368774537,1751358643913,-460.0,0.00020302,2]
[368774538,1751358643922,-1048.64,0.00020302,2]
[368774539,1751358643933,-692.04,0.00020302,2]
[368774540,1751358643942,-525.84,0.00020302,2]
[368774541,1751358643952,-460.0,0.00020303,2]
[368774542,1751358643962,-460.0,0.00020303,2]
[368774543,1751358643971,-155.67,0.00020303,2]
[368774544,1751358643981,-160.58,0.00020303,2]
[368774545,1751358643991,-1744.48,0.00020303,2]
[368774546,1751358644001,-460.0,0.00020303,2]
[368774547,1751358644012,-460.0,0.00020303,2]
[368774548,1751358644022,-471.28,0.00020303,2]
[368774549,1751358644031,-502.53,0.00020303,2]
[368774550,1751358644041,-570.42696254,0.00020314,3]
[368774551,1751358644051,-500.0,0.00020328,2]
[368774552,1751358644063,-500.0,0.00020355,2]
[368774553,1751358644073,-207.4,0.00020359,2]
[368774554,1751358644083,-5000.0,0.00020359,2]
[368774555,1751358644093,-151.0,0.00020359,2]
[368774556,1751358644103,-298.60925501,0.00020359,2]
[368774557,1751358644118,-690.642,0.00020359,2]
[368774558,1751358644127,-500.0,0.00020359,2]
[368774559,1751358644137,-500.0,0.00020359,2]
[368774560,1751358644148,-500.0,0.00020359,2]
[368774561,1751358644158,-500.0,0.00020359,2]
[368774562,1751358644168,-500.0,0.00020359,2]
[368774563,1751358644177,-500.0,0.00020359,2]
[368774564,1751358644187,-500.0,0.00020359,2]
[368774565,1751358644196,-500.0,0.00020359,2]
[368774566,1751358644205,-500.0,0.00020359,2]
[368774567,1751358644215,-500.0,0.00020359,2]
[368774568,1751358644225,-500.0,0.00020359,2]
[368774569,1751358644234,-500.0,0.00020359,2]
[368774570,1751358644245,-500.0,0.00020359,2]
[368774571,1751358644257,-500.0,0.00020359,2]
[368774572,1751358644267,-500.0,0.00020359,2]
[368774573,1751358644277,-500.0,0.00020359,2]
[368774574,1751358644286,-500.0,0.00020359,2]
[368774575,1751358644295,-500.0,0.00020359,2]
[368774576,1751358644305,-500.0,0.00020359,2]
[368774577,1751358644314,-500.0,0.00020359,2]
[368774578,1751358644354,-500.0,0.00020359,2]
[368774579,1751358644364,-500.0,0.00020359,2]
[368774580,1751358644373,-500.0,0.00020359,2]
[368774581,1751358644386,-500.0,0.00020359,2]
[368774582,1751358644398,-500.0,0.00020359,2]
[368774583,1751358644413,-561.88688042,0.00020359,2]
[368774584,1751358644422,-500.0,0.00020359,2]
[368774585,1751358644431,-500.0,0.00020359,2]
[368774586,1751358644441,-500.0,0.00020382,2]
[368774587,1751358644452,-1000.0,0.000204,2]
[368774588,1751358644461,-460.0,0.00020402,2]
[368774589,1751358644471,-460.0,0.00020402,2]
[368774590,1751358644480,-710.13,0.00020402,2]